[Event "ETCC Open 2023"]
[Site "Budva"]
[Date "2023.11.13"]
[Round "3.32"]
[White "Ter-Sahakyan, Samvel"]
[Black "Blohberger, Felix"]
[Result "1-0"]
[ECO "D38"]
[WhiteElo "2618"]
[BlackElo "2513"]
[Annotator "TA"]
[PlyCount "151"]
[EventDate "2023.11.10"]
[EventType "team-tourn"]
[EventCountry "MNE"]
[SourceTitle "playchess.com"]
[Source "ChessBase"]
[SourceQuality "1"]
[WhiteTeam "Armenia"]
[BlackTeam "Austria"]
[WhiteTeamCountry "ARM"]
[BlackTeamCountry "AUT"]
[TimeControl "40/5400+30:1800+30"]

{[%evp 12,151,18,18,30,18,29,27,15,12,6,10,11,3,25,0,0,0,0,14,14,15,37,26,57,26,66,21,31,0,0,0,0,0,0,0,0,0,1,6,11,0,0,0,0,0,0,0,0,0,0,0,75,0,0,0,80,75,75,75,138,8,83,85,118,107,107,107,118,118,140,125,125,125,229,216,184,168,166,108,108,107,107,107,107,107,107,107,107,75,75,75,75,75,75,75,107,75,75,75,75,75,75,75,75,75,75,75,77,77,77,75,125,125,125,125,125,125,125,125,125,125,125,125,29960,29947,29957,29960,29967,29965,29977,29978,29978,29979,29979,29980,29980,29981,29981,29982,29982,29983]} 1. d4 {[%emt 0:00:05]} Nf6 {[%emt 0:00:08]} 2. c4 {[%emt 0:00:04]} e6 {[%emt 0:00:03]} 3. Nf3 {[%emt 0:00:22]} d5 {[%emt 0:00:07]} 4. Nc3 {[%emt 0:00:44]} Bb4 {[%emt 0:00:08]} 5. cxd5 {[%emt 0:03:50]} exd5 {[%emt 0:00:08]} 6. Bg5 {[%emt 0:00:05]} h6 {[%emt 0:00:34]} 7. Bh4 {[%emt 0:00:04]} O-O {[%emt 0:01:08] D38: Queen's Gambit Declined: Ragozin Defence (4 Nf3 Bb4).} 8. e3 {[%emt 0:00:15]} Bf5 {[%emt 0:01:28]} 9. Qb3 {[%emt 0:00:46]} Bxc3+ {[%emt 0:06:12] White has an edge.} 10. bxc3 {[%emt 0:00:40][%cal Oh4f6]} Nbd7 {[%emt 0:03:27]} 11. Be2 {[%emt 0:00:25]} c5 {[%emt 0:01:46]} 12. dxc5 {[%emt 0:00:24]} g5 {[%emt 0:03:23]} 13. Bg3 {[%emt 0:06:48]} (13. Nd4 $5 {[%cal Rd4f5]} Bg6 14. c6 gxh4 15. cxd7 $11) 13... Nxc5 {[%emt 0:02:11]} 14. Qb4 {[%emt 0:00:50]} Nfe4 {[%emt 0:07:13]} 15. Be5 {[%emt 0:13:11]} Rc8 {[%emt 0:07:15]} 16. O-O {[%emt 0:10:50]} a5 {[%emt 0:26:15]} 17. Qa3 {[%emt 0:01:41] [#]} Bg6 $146 {[%emt 0:06:20]} ({Predecessor:} 17... Re8 18. Bd4 Ne6 19. Rac1 Nxd4 20. Nxd4 Bg6 21. Bg4 Rc4 22. Be2 Rc8 23. Qb2 Qd6 24. Qb5 b6 25. Bg4 Rcd8 {½-½ Langer,R (2415)-Malchev,E (2438) GER M/08-B email 2019}) 18. Rad1 {[%emt 0:12:10]} g4 {[%emt 0:03:38]} 19. Nd4 {[%emt 0:05:23]} h5 {[%emt 0:03:58]} 20. Nb3 {[%emt 0:07:10]} (20. f3 {feels hotter.} Qe7 21. Bf4 gxf3 22. Nxf3 Rfe8 23. Rxd5 Ne6 24. Qxe7 Rxe7 25. Rxa5 Nxc3 26. Bd1) 20... Re8 {[%emt 0:05:56]} 21. Nxc5 {[%emt 0:13:05]} Rxe5 {[%emt 0:01:32]} 22. Nxe4 {[%emt 0:07:43]} Bxe4 {[%emt 0:00:07]} 23. Rd4 {[%emt 0:00:27]} Qc7 {[%emt 0:02:53]} 24. Rc1 {[%emt 0:01:29]} Qc5 {[%emt 0:01:23]} 25. Qb2 {[%emt 0:01:04]} (25. Qxc5 {simplifies} Rxc5 26. a4 Bf5 27. Kf1) 25... b6 {[%emt 0:01:17]} 26. a4 {[%emt 0:03:44]} Qc6 {[%emt 0:06:57]} 27. c4 {[%emt 0:03:32]} Qg6 {[%emt 0:03:17]} 28. Rcd1 {[%emt 0:02:53][%cal Rd4d5]} Rc5 {[%emt 0:02:18]} 29. cxd5 {[%emt 0:02:19]} Rexd5 {[%emt 0:00:40]} 30. Rxd5 {[%emt 0:00:49]} Rxd5 {[%emt 0:00:07]} 31. Rc1 {[%emt 0:00:19] Threatening mate with Rc8+.} Rc5 {[%emt 0:01:10] Dodges Rc8+} (31... Kh7 $11 {keeps the balance.}) 32. Rd1 {[%emt 0:01:28]} (32. Rxc5 $16 {White wants to mate with Rc8+.} bxc5 33. Qb5) 32... Rd5 $11 {[%emt 0:00:06]} 33. Rc1 $40 {[%emt 0:00:06][%mdl 128] White is up to no good.} (33. Rxd5 $11 Bxd5 34. Qe5) 33... Rc5 $16 {[%emt 0:00:03]} 34. Rxc5 {[%emt 0:01:21]} bxc5 {[%emt 0:00:05][%mdl 4096] Endgame KQB-KQB} 35. Qb5 {[%emt 0:00:56][%csl LRa5,LRc5] Wards off Bd3} Bc6 {[%emt 0:02:10]} (35... Qc6 $142) 36. Qxc5 {[%emt 0:00:33]} (36. Qxa5 $16 {Hoping for Bf1.} Qf5 37. Bf1) 36... Bxa4 {[%emt 0:01:09]} (36... Qe4 $1 $11 37. f3 (37. Qxa5 $2 Qxg2#) (37. Qg5+ Kf8 $16) 37... gxf3 38. gxf3 Qxa4) 37. Qxa5 {[%emt 0:00:21]} Bc2 {[%emt 0:01:02]} 38. Qd8+ {[%emt 0:00:30]} Kg7 {[%emt 0:00:32]} 39. Qd4+ {[%emt 0:00:34]} Kg8 {[%emt 0:00:41]} 40. f3 {[%emt 0:00:27]} Bf5 {[%emt 0:00:56]} 41. Kf2 {[%emt 0:02:59]} gxf3 {[%emt 0:17:02]} 42. Bxf3 {[%emt 0:01:00]} Kh7 {[%emt 0:02:13]} (42... Qg5 $16 43. h4 Qh6) 43. Qf4 {[%emt 0:03:38]} f6 {[%emt 0:03:01]} 44. h3 {[%emt 0:05:40]} Kg7 {[%emt 0:00:58]} 45. Qc7+ {[%emt 0:10:12]} (45. Qh4 $1 $18) 45... Kh6 {[%emt 0:00:49]} 46. h4 {[%emt 0:00:51] Black must now prevent Qd6. White is more active.} Be6 {[%emt 0:01:26]} 47. Qf4+ {[%emt 0:01:19]} Kg7 {[%emt 0:00:19]} 48. Be4 {[%emt 0:00:10]} (48. Qg3 {simplifies} Qxg3+ 49. Kxg3 Bf7 50. Bb7) 48... Qe8 {[%emt 0:01:40]} 49. Qc7+ {[%emt 0:09:44]} Qd7 {[%emt 0:00:24]} 50. Qc3 {[%emt 0:00:00]} (50. Qxd7+ {simplifies} Bxd7 51. Kf3 Kf7 52. Bd5+) 50... Bf7 {[%emt 0:07:55]} 51. Qd4 {[%emt 0:00:00]} Qg4 {[%emt 0:00:00]} 52. Bc2 {[%emt 0:00:00]} Qe6 {[%emt 0:00:00]} 53. Qd3 {[%emt 0:00:00]} Qc4 {[%emt 0:00:00]} 54. Qh7+ {[%emt 0:00:00]} (54. Qxc4 {simplifies} Bxc4 55. Kf3 Kf7 56. Be4) 54... Kf8 {[%emt 0:00:00]} 55. Be4 {[%emt 0:00:00]} Qa2+ {[%emt 0:00:00]} 56. Kg3 {[%emt 0:00:00]} Qd2 {[%emt 0:00:00]} 57. Qh6+ $1 {[%emt 0:00:48]} Ke7 {[%emt 0:00:00]} 58. Qf4 {[%emt 0:00:39]} Qe1+ {[%emt 0:00:00]} 59. Kh2 {[%emt 0:00:13]} Qd2 {[%emt 0:00:00]} 60. Bf3 {[%emt 0:01:27] aiming for Qe4+.} Qd6 {[%emt 0:00:00]} 61. Kg3 {[%emt 0:00:25]} Qxf4+ {[%emt 0:00:27]} (61... Qb6 $142) 62. Kxf4 {[%emt 0:00:04] Kf5 is the strong threat. KB-KB} Kf8 {[%emt 0:00:11]} 63. e4 {[%emt 0:01:40][%cal Be3e4,Be4e5,Be5e6][%mdl 32]} Kg7 {[%emt 0:00:22]} 64. e5 {[%emt 0:00:10]} Bg6 {[%emt 0:03:36] [#]} 65. e6 $1 {[%emt 0:01:11]} Kf8 {[%emt 0:00:03]} 66. Be4 {[%emt 0:00:29]} Be8 {[%emt 0:00:03]} 67. Kf5 {[%emt 0:00:26]} Ke7 $2 {[%emt 0:00:02][%mdl 8192] A mistake that costs the game.} (67... Kg7 $16 68. Kf4 Kf8) 68. Bd5 {[%emt 0:00:39] White mates.} Bb5 {[%emt 0:00:47] [#]} 69. Kg6 $1 {[%emt 0:00:20]} Be2 {[%emt 0:01:07]} 70. Bf3 {[%emt 0:00:39]} Bd3+ {[%emt 0:00:57]} 71. Kg7 {[%emt 0:00:19]} Bf1 {[%emt 0:01:52]} 72. g3 {[%emt 0:00:38]} Kxe6 {[%emt 0:00:33]} 73. Bxh5 {[%emt 0:00:03]} Ke5 {[%emt 0:00:46]} 74. Bg6 {[%emt 0:01:25]} Be2 {[%emt 0:00:40]} 75. h5 {[%emt 0:00:03]} Bxh5 {[%emt 0:00:28]} 76. Bxh5 {[%emt 0:00:02] Weighted Error Value: White=0.10 (very precise) /Black=0.11 (very precise)} 1-0

[Event "ETCC Open 2023"]
[Site "Budva"]
[Date "2023.11.13"]
[Round "3.33"]
[White "Radjabov, Teimour"]
[Black "Grandelius, Nils"]
[Result "1/2-1/2"]
[ECO "D45"]
[WhiteElo "2745"]
[BlackElo "2688"]
[Annotator "TA"]
[PlyCount "60"]
[EventDate "2023.11.10"]
[EventType "team-tourn"]
[EventCountry "MNE"]
[SourceTitle "playchess.com"]
[Source "ChessBase"]
[SourceQuality "1"]
[WhiteTeam "Azerbaijan"]
[BlackTeam "Sweden"]
[WhiteTeamCountry "AZE"]
[BlackTeamCountry "SWE"]
[TimeControl "40/5400+30:1800+30"]

{[%evp 15,60,19,18,18,29,11,13,27,26,18,18,19,23,25,20,25,25,8,10,9,25,0,0,0,5,2,6,0,0,0,0,0,0,0,0,0,0,0,0,0,0,0,0,0,0,0,0]} 1. d4 {[%emt 0:00:12]} d5 {[%emt 0:00:26]} 2. c4 {[%emt 0:00:19]} c6 {[%emt 0:00:33]} 3. Nf3 {[%emt 0:00:24]} Nf6 {[%emt 0:00:28]} 4. Nc3 {[%emt 0:00:36]} e6 {[%emt 0:01:09]} 5. e3 {[%emt 0:05:35]} a6 {[%emt 0:01:10]} 6. b3 {[%emt 0:03:44]} Bb4 {[%emt 0:00:47]} 7. Bd2 {[%emt 0:00:05]} Nbd7 {[%emt 0:00:32]} 8. Bd3 {[%emt 0:05:43]} O-O {[%emt 0:06:18]} 9. O-O {[%emt 0:11:46][%cal Oc3d5] D45: Semi-Slav: 5 e3.} Qe7 {[%emt 0:00:36]} 10. Qc2 {[%emt 0:11:34]} e5 {[%emt 0:01:41] 10...h6 is vanishing.} 11. dxe5 {[%emt 0:05:56]} (11. Nxe5 {keeps more tension.} Nxe5 12. dxe5 Qxe5 13. Nxd5 Nxd5 14. cxd5 Bxd2 15. Qxd2 Qxd5 16. Qc3) 11... Nxe5 {[%emt 0:00:34]} 12. Nxe5 {[%emt 0:00:08]} Qxe5 {[%emt 0:00:05] [#]} 13. Nxd5 $1 {[%emt 0:02:31]} Nxd5 {[%emt 0:01:01]} 14. cxd5 {[%emt 0:00:05][%mdl 64] Discovered Attack} Bxd2 {[%emt 0:00:10]} 15. Qxd2 {[%emt 0:00:03]} Qxd5 {[%emt 0:00:14] ...Bf5 is the strong threat.} 16. Rfd1 {[%emt 0:00:26] [#]} Qe5 $146 {[%emt 0:37:38]} ({Predecessor:} 16... Qg5 17. e4 Qe7 18. Qe3 Be6 19. Qb6 Rfd8 20. Bf1 g6 21. f3 Rd7 22. Be2 Rad8 23. Rxd7 Rxd7 {½-½ Liang,C (2515)-Zhou,W (2416) Beijing zt 3.3 2005 (9)}) 17. Qb4 {[%emt 0:06:18][%cal Od3h7] [#] And now Bxh7+! would win.} g6 {[%emt 0:05:15]} 18. h3 {[%emt 0:04:57]} a5 {[%emt 0:02:53] The position is equal.} 19. Qb6 {[%emt 0:00:27]} Qg5 {[%emt 0:04:22]} 20. Bf1 {[%emt 0:06:15]} a4 {[%emt 0:07:35]} 21. Rac1 {[%emt 0:08:19]} axb3 {[%emt 0:00:49]} 22. axb3 {[%emt 0:00:09]} Bxh3 {[%emt 0:07:03]} 23. Qxb7 {[%emt 0:03:34]} Be6 {[%emt 0:03:38]} 24. Qxc6 {[%emt 0:00:49]} Bxb3 {[%emt 0:00:35]} 25. Rd2 {[%emt 0:00:26]} Rad8 {[%emt 0:01:07]} 26. Rxd8 {[%emt 0:00:26]} Rxd8 {[%emt 0:00:09]} 27. Qc5 {[%emt 0:00:16]} Qxc5 {[%emt 0:00:14]} 28. Rxc5 {[%emt 0:00:03]} Be6 {[%emt 0:00:12]} 29. f3 {[%emt 0:00:39]} Rc8 {[%emt 0:00:13]} 30. Rxc8+ {[%emt 0:00:03]} Bxc8 {[%emt 0:00:05] An uneventful encounter.   Weighted Error Value: White=0.04 (flawless) /Black=0.00 (flawless)} 1/2-1/2

[Event "ETCC Open 2023"]
[Site "Budva"]
[Date "2023.11.13"]
[Round "3.34"]
[White "Blomqvist, Erik"]
[Black "Mamedyarov, Shakhriyar"]
[Result "0-1"]
[ECO "C10"]
[WhiteElo "2520"]
[BlackElo "2734"]
[Annotator "TA"]
[PlyCount "86"]
[EventDate "2023.11.10"]
[EventType "team-tourn"]
[EventCountry "MNE"]
[SourceTitle "playchess.com"]
[Source "ChessBase"]
[SourceQuality "1"]
[WhiteTeam "Sweden"]
[BlackTeam "Azerbaijan"]
[WhiteTeamCountry "SWE"]
[BlackTeamCountry "AZE"]
[TimeControl "40/5400+30:1800+30"]

{[%evp 15,86,21,20,7,6,-27,-20,-6,-22,-27,-29,-35,-16,-33,-14,-17,0,-13,0,0,0,0,0,0,0,0,0,0,0,0,0,-13,0,0,0,0,0,0,0,-5,-4,-25,-33,-45,-12,-8,-12,-24,0,0,0,0,0,0,0,0,0,0,-10,-181,-170,-188,-164,-260,-262,-820,-807,-1735,-1735,-2239,-2229,-29971,-29972]} 1. e4 {[%emt 0:00:07]} e6 {[%emt 0:00:16]} 2. d4 {[%emt 0:01:02]} d5 {[%emt 0:00:06]} 3. Nc3 {[%emt 0:00:16]} Nf6 {[%emt 0:00:16]} 4. Bg5 {[%emt 0:00:34]} dxe4 {[%emt 0:00:10]} 5. Nxe4 {[%emt 0:00:23]} Nbd7 {[%emt 0:00:05]} 6. Nf3 {[%emt 0:02:06]} h6 {[%emt 0:00:07]} 7. Nxf6+ {[%emt 0:04:13]} Nxf6 {[%emt 0:00:07]} 8. Bxf6 {[%emt 0:03:45]} Qxf6 {[%emt 0:00:31]} 9. Qd3 {[%emt 0:04:33] [#] C10: French with 3 Nc3: Unusual Black 3rd moves and 3...dxe4.} Bd6 $146 {[%emt 0:11:04]} ({Predecessor:} 9... Be7 10. O-O-O O-O 11. Qe4 Rd8 12. g4 Bd6 13. Ne5 Bxe5 14. Qxe5 Qxe5 15. dxe5 Rxd1+ 16. Kxd1 f6 {0-1 Zawadzka,J (2399)-Rajlich,I (2394) POL-ch (Women) 73rd 2021 (9.3)}) 10. O-O-O {[%emt 0:03:21]} Bd7 {[%emt 0:05:19]} 11. g3 {[%emt 0:14:37][%cal Of3e5] The position is equal.} Bc6 {[%emt 0:02:44]} 12. Bg2 {[%emt 0:00:23]} O-O {[%emt 0:05:13]} 13. Qe2 {[%emt 0:15:45]} a5 {[%emt 0:01:49]} 14. Ne1 {[%emt 0:02:56]} a4 {[%emt 0:01:01]} 15. a3 {[%emt 0:01:12]} Rfd8 {[%emt 0:01:57]} 16. f4 {[%emt 0:06:53]} Bd5 {[%emt 0:02:50]} 17. Bxd5 {[%emt 0:03:47]} exd5 {[%emt 0:00:03]} 18. Nf3 {[%emt 0:00:42][%cal Be1f3,Bf3e5,Be5d3,Bd3c5][%mdl 32]} Re8 {[%emt 0:00:29]} 19. Ne5 {[%emt 0:00:38]} Qf5 {[%emt 0:10:11]} 20. Qb5 {[%emt 0:03:10][%csl LRb7,LRd5]} f6 $1 {[%emt 0:00:50]} 21. Nd3 {[%emt 0:02:17]} Reb8 {[%emt 0:04:32] [#] ...c6 would be deadly.} 22. Nc5 {[%emt 0:02:04]} c6 {[%emt 0:01:13]} 23. Qb6 {[%emt 0:07:19]} Qc8 {[%emt 0:00:48] aiming for ...Bc7.} 24. Kb1 $1 {[%emt 0:00:34]} Kf7 {[%emt 0:08:49]} (24... Bc7 $5 25. Qb4 $8 b5 $11) 25. Rhf1 {[%emt 0:01:21]} Qc7 {[%emt 0:09:06]} (25... Bc7 $5 26. Qb4 $8 Bd6 $11) 26. Qxc7+ {[%emt 0:00:24]} Bxc7 {[%emt 0:00:02]} 27. Rde1 {[%emt 0:04:32]} Bd6 {[%emt 0:00:18]} 28. Nd3 {[%emt 0:06:25]} Re8 {[%emt 0:00:59]} 29. Kc1 {[%emt 0:03:22][%cal Od3e5]} Kg6 {[%emt 0:06:32]} 30. Kd2 {[%emt 0:00:49]} h5 {[%emt 0:02:06]} 31. Re3 {[%emt 0:00:54]} Re4 {[%emt 0:02:46]} 32. f5+ {[%emt 0:02:41]} Kg5 $1 {[%emt 0:00:29]} 33. h4+ {[%emt 0:02:09]} Kh6 {[%emt 0:00:02] [#] Hoping for ...Rae8.} 34. Rxe4 {[%emt 0:00:17]} dxe4 $11 {[%emt 0:00:02][%mdl 4096] Endgame KRB-KRN} 35. Nf4 {[%emt 0:00:25]} Ra5 {[%emt 0:00:31]} 36. Ke3 {[%emt 0:02:00]} Rb5 {[%emt 0:01:46]} 37. Kxe4 $2 {[%emt 0:00:32] Now White is beyond hope.} (37. Rb1 $11 {and White is okay.}) 37... Rxb2 $19 {[%emt 0:00:05]} 38. c4 {[%emt 0:00:22]} Rb3 {[%emt 0:01:06]} ({Worse is} 38... Bxa3 39. Ra1 Rb3 40. c5 $11) 39. Ne6 {[%emt 0:00:39]} (39. c5 {keeps fighting.} Bxf4 40. gxf4) 39... Bxa3 {[%emt 0:01:14]} ({And not} 39... Rxg3 40. Rb1 $15) (39... Bxg3 40. Rd1 $15) 40. c5 $2 {[%emt 0:00:28]} (40. Rd1 Rb4 41. Kd3) 40... Bb2 {[%emt 0:04:52] Threatens to win with ...a3.} ({Weaker is} 40... Rxg3 41. Rb1 $11) 41. Rg1 {[%emt 0:01:44]} a3 {[%emt 0:00:59]} 42. g4 {[%emt 0:00:04]} hxg4 {[%emt 0:00:09]} 43. Rxg4 {[%emt 0:00:07]} Bc1 {[%emt 0:00:26] Weighted Error Value: White=0.70/Black=0.04 (flawless)} 0-1

[Event "ETCC Open 2023"]
[Site "Budva"]
[Date "2023.11.13"]
[Round "3.35"]
[White "Mamedov, Rauf"]
[Black "Hillarp Persson, Tiger"]
[Result "1-0"]
[ECO "B23"]
[WhiteElo "2644"]
[BlackElo "2502"]
[Annotator "TA"]
[PlyCount "57"]
[EventDate "2023.11.10"]
[EventType "team-tourn"]
[EventCountry "MNE"]
[SourceTitle "playchess.com"]
[Source "ChessBase"]
[SourceQuality "1"]
[WhiteTeam "Azerbaijan"]
[BlackTeam "Sweden"]
[WhiteTeamCountry "AZE"]
[BlackTeamCountry "SWE"]
[TimeControl "40/5400+30:1800+30"]

{[%evp 9,57,17,16,8,18,19,17,0,2,12,7,-4,0,-6,10,0,8,0,16,12,18,20,16,23,17,18,45,47,47,59,120,120,122,113,122,112,137,116,470,470,429,419,611,581,770,756,745,747,718,729]} 1. e4 {[%emt 0:00:07]} c5 {[%emt 0:00:09]} 2. Nc3 {[%emt 0:00:04]} d6 {[%emt 0:00:15]} 3. Bb5+ {[%emt 0:00:05]} Bd7 {[%emt 0:00:24]} 4. Bxd7+ {[%emt 0:02:25]} Qxd7 {[%emt 0:00:56]} 5. d4 {[%emt 0:00:08]} cxd4 {[%emt 0:00:12]} 6. Qxd4 {[%emt 0:00:03] B23: Closed Sicilian: Lines without g3.} Nc6 {[%emt 0:03:14]} 7. Qd3 {[%emt 0:00:59]} g6 {[%emt 0:03:49]} 8. Nf3 {[%emt 0:00:23] The position is equal.} Bg7 {[%emt 0:01:57]} 9. O-O {[%emt 0:00:44]} Nf6 {[%emt 0:00:44]} 10. Bg5 {[%emt 0:00:03]} h6 {[%emt 0:08:59]} 11. Bd2 {[%emt 0:15:46]} Rc8 {[%emt 0:16:42]} 12. h3 {[%emt 0:26:13] [#] Inhibits Ng4.} Nb4 $146 {[%emt 0:32:36]} ({Predecessor:} 12... O-O 13. Rad1 Rfd8 14. Be3 e6 15. Rfe1 Na5 16. b3 b6 17. a3 Qb7 18. Nb5 Nxe4 19. Bxh6 Nxf2 20. Kxf2 Bxh6 21. Nxd6 {½-½ Vieth,M (1962)-Schwarte,J (2005) GER MS-157 email 2012}) 13. Qe2 {[%emt 0:00:04]} O-O {[%emt 0:00:08]} 14. Rad1 {[%emt 0:09:08]} (14. Be3 $5 {[%cal Re3a7]}) 14... Qe6 {[%emt 0:04:17]} 15. a3 {[%emt 0:11:29]} Na2 {[%emt 0:02:37]} 16. Rfe1 {[%emt 0:05:16] Nb5 is the strong threat.} Nxc3 {[%emt 0:04:22]} 17. Bxc3 {[%emt 0:00:02]} Qa2 {[%emt 0:10:46]} 18. Qb5 {[%emt 0:02:00]} b6 {[%emt 0:00:37]} 19. e5 {[%emt 0:03:21]} Rc5 {[%emt 0:02:51]} ({Better is} 19... Ne8 $14) 20. Qa4 $1 $16 {[%emt 0:06:39] White is more active.} Nd5 {[%emt 0:03:14]} 21. Bd4 {[%emt 0:01:37]} (21. Qxa7 $6 Nxc3 22. bxc3 dxe5 $15) 21... Rc4 {[%emt 0:01:11]} 22. Qxa7 {[%emt 0:04:37] aiming for Ra1.} dxe5 {[%emt 0:00:32]} 23. Nxe5 {[%emt 0:03:25]} ({Of course not} 23. Bxb6 $6 Rxc2 24. Nxe5 Nxb6 25. Qxb6 Qxb2 26. Qxb2 Rxb2 $15) 23... Rxc2 {[%emt 0:00:33][%mdl 8192] [#] A mistake that costs the game.} (23... Bxe5 $16 {is a better chance.} 24. Rxe5 (24. Bxe5 Rxc2 25. Qd7 e6 $16) 24... Rc7) 24. Qa4 $1 $18 {[%emt 0:00:04]} Rfc8 {[%emt 0:00:46] [#]} 25. Ra1 $1 {[%emt 0:00:05]} Qxa1 {[%emt 0:00:26]} (25... Re2 $142 26. Rf1 Qxa1 27. Rxa1 Bxe5) 26. Rxa1 {[%emt 0:00:03] White is clearly winning.} Nf4 {[%emt 0:00:22]} 27. Re1 {[%emt 0:02:25]} Ne2+ {[%emt 0:00:34]} 28. Kf1 {[%emt 0:00:25]} Nxd4 {[%emt 0:00:33]} 29. Qxd4 {[%emt 0:00:03] Weighted Error Value: White=0.02 (flawless) /Black=0.39} 1-0

[Event "ETCC Open 2023"]
[Site "Budva"]
[Date "2023.11.13"]
[Round "3.36"]
[White "Sorensen, Hampus"]
[Black "Durarbayli, Vasif"]
[Result "0-1"]
[ECO "D13"]
[WhiteElo "2479"]
[BlackElo "2625"]
[Annotator "TA"]
[PlyCount "73"]
[EventDate "2023.11.10"]
[EventType "team-tourn"]
[EventCountry "MNE"]
[SourceTitle "playchess.com"]
[Source "ChessBase"]
[SourceQuality "1"]
[WhiteTeam "Sweden"]
[BlackTeam "Azerbaijan"]
[WhiteTeamCountry "SWE"]
[BlackTeamCountry "AZE"]
[TimeControl "40/5400+30:1800+30"]

{[%evp 12,73,18,0,22,16,22,22,29,36,44,37,43,35,50,34,65,56,58,52,75,15,31,29,97,48,28,-81,-84,-131,-143,-159,-154,-192,-77,-68,-64,-75,-37,-66,-62,-71,-52,-52,-17,-40,-44,-43,-43,-43,-43,-43,-43,-71,-57,-76,-70,-292,-292,-1229,-1073,-813,-818,-525]} 1. d4 {[%emt 0:00:17]} d5 {[%emt 0:00:39]} 2. c4 {[%emt 0:00:11]} c6 {[%emt 0:00:41]} 3. Nf3 {[%emt 0:00:20]} Nf6 {[%emt 0:00:45]} 4. cxd5 {[%emt 0:00:23]} cxd5 {[%emt 0:00:52]} 5. Nc3 {[%emt 0:00:10]} Nc6 {[%emt 0:01:21]} 6. Bf4 {[%emt 0:00:11]} Nh5 {[%emt 0:04:11]} 7. Be5 {[%emt 0:00:32]} f6 {[%emt 0:02:41] D13: Slav Defence: Exchange variation without ...Bf5.} 8. Bg3 {[%emt 0:00:16]} e6 {[%emt 0:01:21] is the legacy move (8...e5).} 9. e3 {[%emt 0:03:29]} Qb6 {[%emt 0:01:55] [#] And now ...Nxg3 would win. The position is equal.} 10. a3 {[%emt 0:09:47]} Bd7 {[%emt 0:04:47]} (10... Qxb2 $2 11. Na4 Bb4+ 12. axb4 Qxb4+ 13. Nd2 Nxg3 14. hxg3 $18) 11. Bd3 {[%emt 0:03:19]} Nxg3 {[%emt 0:13:06]} (11... Qxb2 $2 12. Na4 Nxg3 13. hxg3 $18) 12. hxg3 {[%emt 0:00:25]} Ne7 {[%emt 0:00:22] [#]} (12... Qxb2 $2 13. Na4 $18 (13. Rxh7 $2 Qxc3+ 14. Kf1 Rxh7 $19) (13. Rxh7 $2 Qxc3+ 14. Kf1 Rxh7 $19)) 13. O-O $146 {[%emt 0:08:18]} (13. Bxh7 Qxb2 14. Qc1 Qxc1+ 15. Rxc1 g6 $17) ({Predecessor:} 13. Qc2 Kf7 14. g4 g6 15. g5 Bg7 16. gxf6 Bxf6 17. O-O-O Rac8 18. Kb1 Kg7 19. g4 {½-½ Petijevic,V (2291)-Darmanovic,S (2273) MNT-chT Cetinje 2009 (1)}) 13... g5 {[%emt 0:05:35]} ({Don't play} 13... Qxb2 14. Na4 Bxa4 15. Qxa4+ Nc6 16. Bb5 $18) 14. Na4 {[%emt 0:12:39]} Bxa4 {[%emt 0:02:43]} 15. Qxa4+ {[%emt 0:00:33]} Kf7 {[%emt 0:00:31]} 16. e4 {[%emt 0:10:19]} (16. Rac1 $16) 16... dxe4 $11 {[%emt 0:13:29]} 17. Bxe4 {[%emt 0:00:14]} Bg7 {[%emt 0:00:15]} (17... g4 $11 {remains equal.}) 18. Rac1 {[%emt 0:06:18]} ({Not} 18. Qd7 Rhd8 19. Qxb7 Qxb7 20. Bxb7 Rab8 $17) (18. d5 $16 {Black must now prevent dxe6+.} exd5 19. Bd3) 18... Rad8 $14 {[%emt 0:02:24]} 19. Rc4 {[%emt 0:13:26]} (19. d5 $11 {keeps the balance.} Nxd5 20. Rc4) 19... g4 $17 {[%emt 0:01:31]} 20. Nd2 {[%emt 0:01:49]} (20. Rb4 $142 Qa6 21. Ne1) 20... f5 {[%emt 0:08:52]} ({But not} 20... Qxb2 21. Nb3 f5 22. Bxb7 $11) 21. Rb4 {[%emt 0:01:00]} Rxd4 {[%emt 0:02:35]} 22. Nc4 {[%emt 0:01:03]} Qa6 {[%emt 0:05:57]} (22... Qc7 $19 {has better winning chances.} 23. Bxb7 Rxc4 {[%mdl 64] Deflection} 24. Rxc4 Qxb7) 23. Bxb7 {[%emt 0:03:53]} Qxa4 {[%emt 0:01:16]} 24. Rxa4 {[%emt 0:00:02][%cal Ob7a6]} Rhd8 {[%emt 0:09:12]} (24... Rb8 $5 {[%cal Rb8b7]} 25. Ba6 Rdd8 $15) 25. Rb4 {[%emt 0:24:06]} Rb8 {[%emt 0:02:11][%cal Od4c4]} 26. Rc1 {[%emt 0:00:00]} Kg6 {[%emt 0:02:17] Black is more active.} 27. Kf1 {[%emt 0:00:00]} Nd5 {[%emt 0:01:59]} 28. Bxd5 {[%emt 0:00:00]} Rxb4 {[%emt 0:00:06]} 29. axb4 {[%emt 0:00:00]} Rxd5 $11 {[%emt 0:02:32][%mdl 4096] Endgame KRB-KRN} 30. Re1 {[%emt 0:00:00]} Kf7 {[%emt 0:01:57]} 31. Ra1 {[%emt 0:00:00]} Bd4 {[%emt 0:00:01]} 32. Ke2 {[%emt 0:00:00]} Kf6 {[%emt 0:00:08]} 33. Rh1 {[%emt 0:00:00]} Kg6 {[%emt 0:00:05] Against Rh6+} 34. Rd1 $2 {[%emt 0:00:00] White does not recover from this.} (34. Ra1 $15) 34... Bxf2 $1 $19 {[%emt 0:02:08][%mdl 64] [#] Threatens to win with ...Rxd1. Deflection} 35. Rxd5 {[%emt 0:01:25]} (35. Ne5+ Rxe5+ 36. Kxf2) 35... exd5 {[%emt 0:00:05]} 36. Ne5+ {[%emt 0:00:13]} Kf6 {[%emt 0:00:05]} 37. Nd7+ {[%emt 0:00:47] Weighted Error Value: White=0.55/Black=0.19 (very precise)} 0-1